bitfinex/quotes_BTCUSD_20240728
["timestamp","ask_amount","ask_price","bid_price","bid_amount"]
[1722201586790,0.09388167,68002.0,68001.0,0.7368391]
[1722201588048,0.09388167,68002.0,68001.0,0.5015491]
[1722201588189,0.09388167,68002.0,68001.0,0.2662591]
[1722201588391,0.09388167,68002.0,68001.0,0.1274591]
[1722201588669,0.0448565,68002.0,68001.0,0.1274591]
[1722201588870,0.13304022,68002.0,68001.0,0.1274591]
[1722201589068,0.17589672,68002.0,68001.0,0.1274591]
[1722201589274,0.17637863,68002.0,68001.0,0.1274591]
[1722201593301,0.24206666,68002.0,68001.0,0.1274591]
[1722201593455,0.24206666,68002.0,68001.0,0.0098141]
[1722201593651,0.17637863,68002.0,68001.0,0.1274591]
[1722201594336,0.26396267,68002.0,68001.0,0.1274591]
[1722201594541,0.17637863,68002.0,68001.0,0.1274591]
[1722201595287,0.28603555,68002.0,68001.0,0.1274591]
[1722201595482,0.17637863,68002.0,68001.0,0.1274591]
[1722201596589,0.17637863,68002.0,68001.0,0.0098141]
[1722201596790,0.33658192,68002.0,68001.0,0.002924]
[1722201597015,0.17637863,68002.0,68001.0,0.00940143]
[1722201597415,0.42560994,68002.0,68001.0,0.00940143]
[1722201598051,0.30796694,68002.0,68001.0,0.00940143]
[1722201598467,0.17690876,68002.0,68001.0,0.00940143]
[1722201598999,0.53031114,68002.0,68001.0,0.00940143]
[1722201599200,0.53031114,68002.0,68001.0,0.002924]
[1722201599396,0.67861306,68002.0,68001.0,0.002924]
[1722201599602,0.53031114,68002.0,68001.0,0.002924]
[1722201599842,0.67861306,68002.0,68001.0,0.002924]
[1722201600251,0.53031114,68002.0,68001.0,0.002924]
[1722201600453,0.29502414,68002.0,68001.0,0.002924]
[1722201600697,0.53031114,68002.0,68001.0,0.002924]
[1722201601106,0.53050565,68002.0,68001.0,0.002924]
[1722201601870,0.67530565,68002.0,68001.0,0.002924]
[1722201603376,0.44001865,68002.0,68001.0,0.002924]
[1722201603652,0.24587188,68002.0,68001.0,0.002924]
[1722201603853,0.37806226,68002.0,68001.0,0.002924]
[1722201604216,0.33473338,68002.0,68001.0,0.002924]
[1722201604551,0.37782188,68002.0,68001.0,0.002924]
[1722201605296,0.29485874,68002.0,68001.0,0.002924]
[1722201607060,0.24532023,68002.0,68001.0,0.002924]
[1722201607479,0.29489443,68002.0,68001.0,0.002924]
[1722201607683,0.29488831,68002.0,68001.0,0.002924]
[1722201608483,0.53017531,68002.0,68001.0,0.002924]
[1722201610251,0.53017391,68002.0,68001.0,0.002924]
[1722201613465,0.53015595,68002.0,68001.0,0.002924]
[1722201613991,0.29486895,68002.0,68001.0,0.002924]
[1722201615076,0.53015595,68002.0,68001.0,0.002924]
[1722201616729,0.53035359,68002.0,68001.0,0.002924]
[1722201617135,0.53040265,68002.0,68001.0,0.002924]
[1722201618008,0.29511565,68002.0,68001.0,0.002924]
[1722201619794,0.29496429,68002.0,68001.0,0.002924]
[1722201621107,0.53025129,68002.0,68001.0,0.002924]
[1722201623049,0.53026148,68002.0,68001.0,0.002924]
[1722201623427,0.48717298,68002.0,68001.0,0.002924]
[1722201623615,0.52902324,68002.0,68001.0,0.002924]
[1722201626207,0.39678026,68002.0,68001.0,0.002924]
[1722201626424,0.52891321,68002.0,68001.0,0.002924]
[1722201626783,0.52892273,68002.0,68001.0,0.002924]
[1722201629651,0.5288016,68002.0,68001.0,0.002924]
[1722201631848,0.39678026,68002.0,68001.0,0.002924]
[1722201632185,0.52885421,68002.0,68001.0,0.002924]
[1722201632930,0.52886354,68002.0,68001.0,0.002924]
[1722201633250,0.17593354,68002.0,68001.0,0.263969]
[1722201633454,0.17593354,68002.0,68001.0,0.27391111]
[1722201633633,0.17593354,68002.0,68001.0,0.50920111]
[1722201634915,0.32446095,68002.0,68001.0,0.74449111]
[1722201635118,0.17593354,68002.0,68001.0,0.74449111]
[1722201636335,0.17593354,68002.0,68001.0,1.06468111]
[1722201636336,0.09338482,68002.0,68001.0,1.06468111]
[1722201636541,0.09361913,68002.0,68001.0,1.06468111]
[1722201637153,0.22559243,68002.0,68001.0,1.06468111]
[1722201638244,0.09361913,68002.0,68001.0,1.06468111]
[1722201638488,0.04385026,68002.0,68001.0,1.06468111]
[1722201638683,0.002,68002.0,68001.0,1.06468111]
[1722201638887,0.05147281,68002.0,68001.0,1.06468111]
[1722201639307,0.13922203,68002.0,68001.0,1.06468111]
[1722201639713,0.05128434,68002.0,68001.0,1.11468111]
[1722201640087,0.06795463,68002.0,68001.0,1.34997111]
[1722201640388,0.06795463,68002.0,68001.0,1.29997111]
[1722201640546,0.002,68002.0,68001.0,1.43587792]
[1722201640748,0.002,68002.0,68001.0,1.50887792]
[1722201641338,0.002,68002.0,68001.0,1.51087792]
[1722201641554,0.00084,68008.0,68007.0,1.10871]
[1722201641757,0.00084,68008.0,68007.0,1.39464876]
[1722201641963,0.00084,68008.0,68007.0,1.40456828]
[1722201642380,0.00084,68008.0,68007.0,1.40356828]
[1722201642601,0.00084,68008.0,68007.0,1.40256828]
[1722201643925,0.00184,68008.0,68007.0,1.41456828]
[1722201644351,0.00284,68008.0,68007.0,1.42056828]
[1722201648601,0.00284,68008.0,68007.0,1.44356828]
[1722201649985,0.00284,68008.0,68007.0,1.67883728]
[1722201650188,0.00284,68008.0,68007.0,1.72883728]
[1722201650389,0.00284,68008.0,68007.0,1.77883728]
[1722201650605,0.00184,68008.0,68007.0,1.76883728]
[1722201650828,0.00084,68008.0,68007.0,1.76283728]
[1722201651025,0.00184,68008.0,68007.0,1.77283728]
[1722201651179,0.00284,68008.0,68007.0,1.76883728]
[1722201651601,0.00284,68008.0,68007.0,1.78174071]
[1722201651797,0.00084,68008.0,68007.0,1.77174071]
[1722201652142,0.00184,68008.0,68007.0,1.77774071]
[1722201654297,0.00184,68008.0,68007.0,1.79174071]
[1722201654514,0.00284,68008.0,68007.0,1.79174071]
[1722201656678,0.00284,68008.0,68007.0,1.79266471]
[1722201662220,0.00284,68008.0,68007.0,1.73212595]
[1722201666560,0.10284,68008.0,68007.0,1.73212595]
[1722201667856,0.10284,68008.0,68007.0,1.83212595]
[1722201677534,0.10284,68008.0,68007.0,1.73312595]
[1722201677739,0.10284,68008.0,68007.0,1.83212595]
[1722201677948,0.10284,68008.0,68007.0,1.98238552]
[1722201679994,0.044024,68008.0,68007.0,2.22563552]
[1722201680182,0.00084,68013.0,68012.0,1.582386]
[1722201680386,0.00084,68013.0,68012.0,1.790286]
[1722201680503,0.00084,68013.0,68012.0,1.96853273]
[1722201680933,0.00084,68013.0,68012.0,1.8463216]
[1722201681325,0.00084,68013.0,68012.0,1.8453216]
[1722201683208,0.00084,68013.0,68012.0,1.8593216]
[1722201684025,0.00184,68013.0,68012.0,1.8733216]
[1722201684769,1e-06,68013.0,68012.0,2.50208317]
[1722201685368,0.0015542,68029.0,68028.0,1.120886]
[1722201685591,0.0015542,68029.0,68028.0,1.2782746]
[1722201685792,0.0015542,68029.0,68028.0,1.33510611]
[1722201685996,0.0015542,68029.0,68028.0,1.28810611]
[1722201686194,0.04391676,68030.0,68029.0,1.058368]
[1722201686412,0.04391676,68030.0,68029.0,1.213268]
[1722201686614,0.04391676,68030.0,68029.0,1.23896935]
[1722201687582,0.04391676,68030.0,68029.0,1.24896935]
[1722201688084,0.04391676,68031.0,68030.0,0.870165]
[1722201688293,0.04391676,68031.0,68030.0,0.893165]
[1722201688489,0.04391676,68031.0,68030.0,0.90239045]
[1722201688749,0.04391676,68031.0,68030.0,0.94857645]
[1722201689317,0.0015542,68032.0,68031.0,0.870151]
[1722201689654,0.05092581,68032.0,68031.0,1.128337]
[1722201689815,0.05092581,68032.0,68031.0,1.13756131]
[1722201690010,0.05092581,68032.0,68031.0,1.27194991]
[1722201690011,0.04937161,68032.0,68031.0,1.27194991]
[1722201690231,0.11523765,68032.0,68031.0,1.27194991]
[1722201690434,0.0631,68038.0,68036.0,0.047]
[1722201690717,0.0813,68039.0,68038.0,0.352743]
[1722201690914,0.0813,68039.0,68038.0,0.823067]
[1722201690915,0.13066811,68039.0,68038.0,0.823067]
[1722201691211,0.13716305,68039.0,68038.0,0.89431754]
[1722201691410,0.11521472,68039.0,68038.0,0.89431754]
[1722201692173,0.08879494,68041.0,68039.0,0.823056]
[1722201692174,0.06584661,68040.0,68039.0,0.823056]
[1722201692377,0.11504948,68040.0,68039.0,0.907956]
[1722201692577,0.001,68041.0,68040.0,0.823042]
[1722201692795,0.05020288,68041.0,68040.0,0.823042]
[1722201692979,0.0774,68045.0,68040.0,0.823042]
[1722201692980,0.0774,68045.0,68044.0,0.822993]
[1722201693177,0.06582036,68045.0,68044.0,0.907893]
[1722201693375,0.04387957,68045.0,68044.0,0.09408679]
[1722201693576,0.0015542,68045.0,68044.0,0.76423879]
[1722201693798,0.0015542,68045.0,68044.0,1.11740306]
[1722201694175,0.003,68048.0,68047.0,0.822958]
[1722201694387,0.003,68048.0,68047.0,0.9862803]
[1722201694587,0.003,68048.0,68047.0,0.9954637]
[1722201697477,0.06576902,68056.0,68047.0,0.9954637]
[1722201697478,0.001,68059.0,68051.0,0.235117]
[1722201697773,0.06576902,68063.0,68059.0,0.822815]
[1722201697774,0.001,68060.0,68059.0,0.822815]
[1722201697974,0.001,68060.0,68059.0,0.907715]
[1722201698200,0.001,68060.0,68059.0,0.91686337]
[1722201698395,0.001,68060.0,68059.0,1.00854971]
[1722201698819,0.001,68061.0,68060.0,0.587715]
[1722201699021,0.001,68061.0,68060.0,0.907701]
[1722201699194,0.001,68061.0,68060.0,0.91684824]
[1722201699665,0.001,68062.0,68061.0,0.82279]
[1722201699867,0.001,68062.0,68061.0,0.93402693]
[1722201700073,0.1453,68065.0,68061.0,0.11123693]
[1722201700074,0.001,68063.0,68061.0,0.11123693]
[1722201700369,0.001,68063.0,68062.0,0.672597]
[1722201700525,0.001,68063.0,68062.0,0.907676]
[1722201700732,0.001,68063.0,68062.0,0.91680958]
[1722201701906,0.001,68064.0,68063.0,0.822766]
[1722201702452,0.001,68064.0,68063.0,0.83189845]
[1722201702974,0.001,68066.0,68065.0,0.117534]
[1722201703300,0.001,68066.0,68065.0,0.68170219]
[1722201703506,0.001,68066.0,68065.0,0.91677119]
[1722201703704,0.0828,68068.0,68067.0,0.587655]
[1722201704084,0.0828,68068.0,68067.0,0.59678293]
[1722201704284,0.0838,68068.0,68067.0,0.59678293]
[1722201705208,0.0838,68068.0,68067.0,0.59878293]
[1722201705433,0.0828,68068.0,68067.0,0.69105812]
[1722201705693,0.0838,68068.0,68067.0,0.69105812]
[1722201706397,0.001,68068.0,68067.0,0.92812012]
[1722201706540,0.004,68070.0,68069.0,0.235055]
[1722201706741,0.00084,68074.0,68073.0,0.352561]
[1722201706742,0.00484,68074.0,68073.0,0.352561]
[1722201706941,0.00484,68074.0,68073.0,0.672502]
[1722201707287,0.00484,68074.0,68073.0,0.91662656]
[1722201707577,0.00184,68074.0,68073.0,0.91662656]
[1722201707823,0.00184,68074.0,68073.0,1.01658922]
[1722201708229,0.00484,68074.0,68073.0,1.01658922]
[1722201708379,0.00484,68074.0,68073.0,1.01858922]
[1722201708575,0.00184,68074.0,68073.0,1.01858922]
[1722201709497,0.00184,68074.0,68073.0,1.02058922]
[1722201709906,0.00084,68074.0,68073.0,1.02058922]
[1722201711923,0.00084,68074.0,68073.0,1.10828922]
[1722201715946,0.00084,68074.0,68073.0,1.04358922]
[1722201716813,0.00084,68074.0,68073.0,1.10678922]
[1722201717134,0.00084,68074.0,68073.0,1.18798922]
[1722201720226,0.00084,68074.0,68073.0,1.23798922]
[1722201723730,0.00084,68074.0,68073.0,1.18798922]
[1722201723899,0.00084,68074.0,68073.0,1.04358922]
[1722201724462,0.00084,68074.0,68073.0,0.94362656]
[1722201724873,0.00084,68074.0,68073.0,0.92062656]
[1722201726312,0.00384,68074.0,68073.0,0.45054456]
[1722201726527,0.08594,68074.0,68073.0,0.45054456]
[1722201726738,0.14884,68074.0,68073.0,0.45054456]
[1722201726932,0.14584,68074.0,68073.0,0.45054456]
[1722201727340,0.14884,68074.0,68073.0,0.45054456]
[1722201727658,0.14584,68074.0,68073.0,0.45054456]
[1722201727861,0.14884,68074.0,68073.0,0.45054456]
[1722201728066,0.14884,68074.0,68073.0,0.68558556]
[1722201728262,0.14884,68074.0,68073.0,0.45054456]
[1722201728653,0.14884,68074.0,68073.0,0.68558556]
[1722201728853,0.14884,68074.0,68073.0,0.45054456]
[1722201729432,0.14884,68074.0,68073.0,0.68558556]
[1722201730337,0.14884,68074.0,68073.0,0.45054456]
[1722201730638,0.14584,68074.0,68073.0,0.45054456]
[1722201730837,0.14584,68074.0,68073.0,0.68558556]
[1722201731027,0.14884,68074.0,68073.0,0.68558556]
[1722201731989,0.14884,68074.0,68073.0,0.77764932]
[1722201733272,0.14884,68074.0,68073.0,0.68558556]
[1722201733490,0.08694,68074.0,68073.0,0.68558556]
[1722201734078,0.08394,68074.0,68073.0,0.68558556]
[1722201735050,0.00184,68074.0,68073.0,0.68558556]
[1722201735250,0.04954937,68074.0,68073.0,0.68558556]
[1722201735466,0.04954937,68074.0,68073.0,0.77764932]
[1722201736126,0.05254937,68074.0,68073.0,0.77764932]
[1722201736333,0.04954937,68074.0,68073.0,0.77764932]
[1722201736539,0.00184,68074.0,68073.0,0.77764932]
[1722201736920,0.04958496,68074.0,68073.0,0.77764932]
[1722201738719,0.05258496,68074.0,68073.0,0.77764932]
[1722201739787,0.05251556,68074.0,68073.0,0.77764932]
[1722201741255,0.05251556,68074.0,68073.0,0.68558556]
[1722201742282,0.05252735,68074.0,68073.0,0.68558556]
[1722201743096,0.05250841,68074.0,68073.0,0.68558556]
[1722201743284,0.09240495,68074.0,68073.0,0.68558556]
[1722201743497,0.09340495,68074.0,68073.0,0.68558556]
[1722201743672,0.09640495,68074.0,68073.0,0.68558556]
[1722201744115,0.09340495,68074.0,68073.0,0.68558556]
[1722201744429,0.04950841,68074.0,68073.0,0.68558556]
[1722201744545,0.05250841,68074.0,68073.0,0.68558556]
[1722201744752,0.04950841,68074.0,68073.0,0.68558556]
[1722201745156,0.11535322,68074.0,68073.0,0.68558556]
[1722201745398,0.11835322,68074.0,68073.0,0.68558556]
[1722201746310,0.05256761,68074.0,68073.0,0.68558556]
[1722201746971,0.0832888,68074.0,68073.0,0.68558556]
[1722201747401,0.17113784,68074.0,68073.0,0.68558556]
[1722201749324,0.0802888,68074.0,68073.0,0.68558556]
[1722201749948,0.03256119,68074.0,68073.0,0.68558556]
[1722201750086,0.14243087,68074.0,68073.0,0.79198832]
[1722201750294,0.19316799,68074.0,68073.0,0.79198832]
[1722201750655,0.03556119,68074.0,68073.0,0.79198832]
[1722201750863,0.14544824,68074.0,68073.0,0.79198832]
[1722201751067,0.19319772,68074.0,68073.0,0.79198832]
[1722201752205,0.08331067,68074.0,68073.0,0.79198832]
[1722201752815,0.08331292,68074.0,68073.0,0.79198832]
[1722201754802,0.08031292,68074.0,68073.0,0.79198832]
[1722201754997,0.08331292,68074.0,68073.0,0.79198832]
[1722201755338,0.81840792,68074.0,68073.0,0.01308356]
[1722201755541,0.89924165,68074.0,68073.0,0.004]
[1722201755976,0.118559,68051.0,68043.0,0.117571]
[1722201756192,0.004,68041.0,68040.0,0.235155]
[1722201756404,0.004,68041.0,68038.0,0.437643]
[1722201756405,0.003,68039.0,68038.0,0.437643]
[1722201756964,0.14009021,68039.0,68038.0,0.437643]
[1722201757296,0.04382919,68039.0,68038.0,0.672805]
[1722201757698,0.04682919,68039.0,68038.0,0.672805]
[1722201758018,0.04382919,68039.0,68038.0,0.672805]
[1722201758336,0.003,68040.0,68039.0,0.352738]
[1722201758734,0.003,68040.0,68039.0,0.587897]
[1722201758977,0.03524641,68040.0,68039.0,0.587897]
[1722201759426,0.03224641,68040.0,68039.0,0.587897]
[1722201759597,0.03454684,68042.0,68040.0,0.235155]
[1722201759800,0.03354681,68041.0,68040.0,0.351732]
[1722201759939,0.03354681,68041.0,68040.0,0.671787]
[1722201760769,0.03354681,68041.0,68040.0,0.593887]
[1722201760973,0.03354681,68041.0,68040.0,0.677787]
[1722201760974,0.03754681,68041.0,68040.0,0.677787]
[1722201761173,0.03354681,68041.0,68040.0,0.677787]
[1722201761373,0.03354681,68041.0,68040.0,0.670787]
[1722201761574,0.03854681,68041.0,68040.0,0.678787]
[1722201762568,0.03954681,68041.0,68040.0,0.687787]
[1722201762812,0.03554681,68041.0,68040.0,0.687787]
[1722201763027,0.03554681,68041.0,68040.0,0.7800827]
[1722201765108,0.03554681,68041.0,68040.0,0.79153805]
[1722201766635,0.03554681,68041.0,68040.0,0.69924235]
[1722201768620,0.002,68041.0,68040.0,0.69924235]
[1722201774247,0.03497062,68041.0,68040.0,0.69924235]
[1722201776897,0.03897062,68041.0,68040.0,0.69924235]
[1722201780901,0.03497062,68041.0,68040.0,0.93439735]
[1722201781097,0.03897062,68041.0,68040.0,1.10074709]
[1722201782127,0.03897062,68041.0,68040.0,0.99939735]
[1722201783151,0.03897062,68041.0,68040.0,1.00032135]
[1722201783310,0.03981062,68041.0,68040.0,1.00032135]
[1722201785468,0.15414308,68041.0,68040.0,1.00032135]
[1722201785633,0.20285589,68041.0,68040.0,1.00032135]
[1722201787204,0.20284306,68041.0,68040.0,1.00032135]
[1722201790265,0.20277754,68041.0,68040.0,1.00032135]
[1722201791197,0.19877754,68041.0,68040.0,1.10826349]
[1722201791411,0.19526415,68041.0,68040.0,1.00032135]
[1722201793494,0.14662969,68041.0,68040.0,1.00032135]
[1722201793670,0.19531548,68041.0,68040.0,1.00032135]
[1722201796887,0.14662969,68041.0,68040.0,1.00032135]
[1722201797114,0.19531692,68041.0,68040.0,1.00032135]
[1722201800124,0.19529249,68041.0,68040.0,1.00032135]
[1722201800823,0.23912354,68041.0,68040.0,1.00032135]
[1722201801057,0.19529249,68041.0,68040.0,1.00032135]
[1722201801413,0.30487011,68041.0,68040.0,1.00032135]
[1722201802065,0.30487011,68041.0,68040.0,1.10826349]
[1722201803085,0.14662969,68041.0,68040.0,1.10826349]
[1722201803284,0.30512213,68041.0,68040.0,0.91542135]
[1722201803488,0.19526361,68041.0,68040.0,1.00032135]
[1722201803715,0.30512245,68041.0,68040.0,1.00032135]
[1722201805587,0.16877763,68041.0,68040.0,1.49401849]
[1722201806008,0.03224857,68041.0,68040.0,1.49401849]
[1722201806575,0.09816676,68041.0,68040.0,1.49401849]
[1722201807048,0.09816677,68041.0,68040.0,1.49401849]
[1722201807436,0.07619451,68041.0,68040.0,1.49401849]
[1722201808756,0.03224857,68041.0,68040.0,1.49401849]
[1722201810211,0.07618475,68041.0,68040.0,1.49401849]
[1722201810454,0.03224857,68041.0,68040.0,1.49401849]
[1722201810600,0.03224857,68041.0,68040.0,1.38607635]
[1722201811060,0.02724857,68041.0,68040.0,1.38607635]
[1722201811282,0.02724857,68041.0,68040.0,1.39475412]
[1722201815240,0.02808857,68041.0,68040.0,1.39475412]
[1722201815653,0.02808857,68041.0,68040.0,1.53422953]
[1722201822378,0.02808857,68041.0,68040.0,1.10092135]
[1722201822583,0.00084,68041.0,68040.0,1.03592135]
[1722201824565,0.04476252,68041.0,68040.0,0.95102135]
[1722201824780,0.04476252,68041.0,68040.0,1.14317251]
[1722201825950,0.04479775,68041.0,68040.0,1.14317251]
[1722201826537,0.04479776,68041.0,68040.0,1.14317251]
[1722201826785,0.00084,68041.0,68040.0,1.14317251]
[1722201826987,0.04479801,68041.0,68040.0,1.14317251]
[1722201828154,0.00084,68041.0,68040.0,1.14317251]
[1722201828965,0.04480318,68041.0,68040.0,1.14317251]
[1722201829719,0.00084,68041.0,68040.0,1.14317251]
[1722201830082,0.00084,68041.0,68040.0,0.95832135]
[1722201831129,0.01224813,68041.0,68040.0,0.95832135]
[1722201831323,0.07818478,68041.0,68040.0,0.95832135]
[1722201831524,0.01224813,68041.0,68040.0,0.95832135]
[1722201831938,0.07818478,68041.0,68040.0,0.95832135]
[1722201832324,0.07819601,68041.0,68040.0,0.95832135]
[1722201833558,0.12554296,68041.0,68040.0,0.95832135]
[1722201835498,0.07819601,68041.0,68040.0,0.95832135]
[1722201835702,0.12554321,68041.0,68040.0,0.95832135]
[1722201838715,0.01224813,68041.0,68040.0,0.95832135]
[1722201838893,0.12554713,68041.0,68040.0,1.07368251]
[1722201839789,0.12554713,68041.0,68040.0,1.50123751]
[1722201839790,0.05622103,68041.0,68040.0,1.50123751]
[1722201840104,0.01224813,68041.0,68040.0,1.50123751]
[1722201840641,0.01224813,68041.0,68040.0,1.49223751]
[1722201840840,0.01224813,68041.0,68040.0,1.48423751]
[1722201841045,0.01224813,68041.0,68040.0,1.49823751]
[1722201841360,0.01324813,68041.0,68040.0,1.51223751]
[1722201842004,0.00184,68041.0,68040.0,1.51223751]
[1722201842199,0.001614,68041.0,68040.0,1.51223751]
[1722201846871,0.001614,68041.0,68040.0,1.36983751]
[1722201847236,0.001614,68041.0,68040.0,1.46583751]
[1722201848245,0.001614,68041.0,68040.0,1.36983751]
[1722201849812,0.0455914,68041.0,68040.0,1.36983751]
[1722201849990,0.001614,68041.0,68040.0,1.36983751]
[1722201850191,0.0455914,68041.0,68040.0,1.36983751]
[1722201850753,0.04559403,68041.0,68040.0,1.36983751]
[1722201853807,0.001614,68041.0,68040.0,1.36983751]
[1722201854016,0.04559152,68041.0,68040.0,1.36983751]
[1722201854229,0.001614,68041.0,68040.0,1.36983751]
[1722201854978,0.04559063,68041.0,68040.0,1.36983751]
[1722201855534,0.06757976,68041.0,68040.0,1.36983751]
[1722201855759,0.001614,68041.0,68040.0,1.36983751]
[1722201856399,0.04559048,68041.0,68040.0,1.36983751]
[1722201856613,0.001614,68041.0,68040.0,1.36983751]
[1722201856814,0.001614,68041.0,68040.0,1.45243751]
[1722201857418,0.04558973,68041.0,68040.0,1.45243751]
[1722201857616,0.001614,68041.0,68040.0,1.45243751]
[1722201858083,0.04558963,68041.0,68040.0,1.45243751]
[1722201858428,0.001614,68041.0,68040.0,1.45243751]
[1722201859179,0.04558993,68041.0,68040.0,1.45243751]
[1722201859414,0.001614,68041.0,68040.0,1.45243751]
[1722201860657,0.06757689,68041.0,68040.0,1.45243751]
[1722201860810,0.04559037,68041.0,68040.0,1.25447635]
[1722201862814,0.04559037,68041.0,68040.0,1.31987635]
[1722201863428,0.001614,68041.0,68040.0,1.39867635]
[1722201863654,0.001614,68041.0,68040.0,1.53941301]
[1722201865961,0.001614,68041.0,68040.0,1.63541301]
[1722201868770,0.001614,68041.0,68040.0,1.53941301]
[1722201870491,0.001614,68041.0,68040.0,1.63741301]
[1722201870638,0.001614,68041.0,68040.0,1.53941301]
[1722201872105,0.001388,68041.0,68040.0,1.53941301]
[1722201875922,0.001388,68041.0,68040.0,1.63541301]
[1722201877757,0.001388,68041.0,68040.0,1.53941301]
[1722201881267,0.001388,68041.0,68040.0,1.77456801]
[1722201883099,0.04535727,68041.0,68040.0,1.77456801]
[1722201883474,0.001388,68041.0,68040.0,1.77456801]
[1722201883681,0.04535907,68041.0,68040.0,1.77456801]
[1722201885327,0.04535907,68041.0,68040.0,1.87256801]
[1722201885544,0.001388,68041.0,68040.0,1.87456801]
[1722201890354,0.001388,68041.0,68040.0,1.97256801]
[1722201891237,0.001388,68041.0,68040.0,2.10972301]
[1722201891440,0.001388,68041.0,68040.0,2.32988203]
[1722201892209,0.001388,68041.0,68040.0,2.31388203]
[1722201892410,0.001388,68041.0,68040.0,2.21788203]
[1722201892611,0.001388,68041.0,68040.0,2.10972301]
[1722201892813,0.001388,68041.0,68040.0,2.23188137]
[1722201893222,0.001388,68041.0,68040.0,2.2178828]
[1722201893421,0.001388,68041.0,68040.0,2.2318828]
[1722201893827,0.000388,68041.0,68040.0,2.2178828]
[1722201894197,0.000388,68041.0,68040.0,2.2318828]
[1722201894402,0.000388,68041.0,68040.0,2.2178828]
[1722201895246,0.000388,68041.0,68040.0,2.2318828]
[1722201896025,0.000388,68041.0,68040.0,2.23188193]
[1722201896347,0.000388,68041.0,68040.0,2.32988193]
[1722201897577,0.000388,68041.0,68040.0,2.31588193]
[1722201898178,0.000388,68041.0,68040.0,2.32988193]
[1722201898584,0.000388,68041.0,68040.0,2.31588193]
[1722201899020,0.000388,68041.0,68040.0,2.32988193]
[1722201899229,0.000388,68041.0,68040.0,2.32988001]
[1722201899957,0.000388,68041.0,68040.0,2.56850958]
[1722201900274,0.04394872,68053.0,68052.0,1.439127]
[1722201900475,0.04394872,68057.0,68056.0,0.43175]
[1722201900675,0.06592308,68059.0,68058.0,0.214546]
[1722201900676,0.04394872,68059.0,68058.0,0.214546]
[1722201900878,0.04394872,68064.0,68062.0,0.047]
[1722201901077,0.1881718,68069.0,68064.0,0.047]
[1722201901078,0.06592308,68068.0,68064.0,0.047]
[1722201901301,0.06592308,68068.0,68063.0,0.11924847]
[1722201901302,0.14422308,68069.0,68068.0,0.352588]
[1722201901522,0.14422308,68069.0,68068.0,0.8861812]
[1722201901523,0.12223989,68069.0,68068.0,0.8861812]
[1722201901728,0.1222396,68069.0,68068.0,1.1442402]
[1722201902104,0.14161056,68072.0,68071.0,0.235048]
[1722201902376,0.14161056,68072.0,68071.0,0.68385401]
[1722201902377,0.1413,68072.0,68071.0,0.68385401]
[1722201902574,0.18421606,68072.0,68071.0,0.98097805]
[1722201902775,0.18421606,68072.0,68071.0,1.00397805]
[1722201902776,0.20621056,68072.0,68071.0,1.00397805]
[1722201903373,0.1403,68072.0,68071.0,1.00397805]
[1722201904394,0.1403,68072.0,68071.0,1.01597805]
[1722201904960,0.0757,68072.0,68071.0,1.26302605]
[1722201908379,0.139,68072.0,68071.0,1.26302605]
[1722201912054,0.13984,68072.0,68071.0,1.26302605]
[1722201917118,0.07654,68072.0,68071.0,1.26302605]
[1722201917251,0.00084,68072.0,68071.0,1.26302605]
[1722201927010,0.00084,68072.0,68071.0,1.34132605]
[1722201927968,0.00084,68072.0,68071.0,1.38832605]
[1722201928991,0.00084,68072.0,68071.0,1.45482605]
[1722201929724,0.00084,68072.0,68071.0,1.50482605]
[1722201929883,0.00084,68072.0,68071.0,1.54182605]
[1722201930108,0.00084,68072.0,68071.0,1.52982605]
[1722201930318,0.00084,68072.0,68071.0,1.55782605]
[1722201930514,0.00084,68072.0,68071.0,1.79287405]
[1722201932437,0.00084,68072.0,68071.0,1.55782605]
[1722201933563,0.00084,68072.0,68071.0,1.55982605]
[1722201933772,0.00084,68072.0,68071.0,1.55782605]
[1722201935020,0.00084,68072.0,68071.0,1.55982605]
[1722201935621,0.00084,68072.0,68071.0,1.79487405]
[1722201935829,0.00084,68072.0,68071.0,1.89487405]
[1722201936210,0.00084,68072.0,68071.0,1.65982605]
[1722201936456,0.00084,68072.0,68071.0,1.89487405]
[1722201937203,0.00084,68072.0,68071.0,2.01697053]
[1722201937631,1e-06,68072.0,68071.0,2.3826001]
[1722201938008,1e-06,68072.0,68071.0,2.3966001]
[1722201938496,1e-06,68072.0,68071.0,2.6456481]
[1722201938862,1e-06,68072.0,68071.0,2.6316481]
[1722201939956,1e-06,68072.0,68071.0,2.6456481]
[1722201940340,1e-06,68072.0,68071.0,2.52355162]
[1722201940471,1e-06,68072.0,68071.0,2.64563822]
[1722201940675,0.00084,68074.0,68073.0,1.830695]
[1722201940905,0.00828,68077.0,68073.0,1.830695]
[1722201940906,0.00828,68077.0,68076.0,0.978947]
[1722201941077,0.00828,68077.0,68076.0,2.07585359]
[1722201941276,0.00828,68077.0,68076.0,2.08660634]
[1722201941508,0.00828,68077.0,68076.0,2.55666834]
[1722201942309,0.00828,68077.0,68076.0,2.43458332]
[1722201942524,0.00828,68077.0,68076.0,2.46110817]
[1722201942732,0.00828,68077.0,68076.0,2.47510817]
[1722201944020,1e-06,68081.0,68080.0,0.39137]
[1722201944190,1e-06,68081.0,68080.0,1.06447334]
[1722201944435,0.00828,68096.0,68081.0,1.359219]
[1722201944436,0.0015542,68095.0,68081.0,1.359219]
[1722201944637,0.0015542,68095.0,68081.0,2.10250657]
[1722201944842,0.00828,68096.0,68081.0,2.34825471]
[1722201945047,0.00828,68096.0,68081.0,2.41033075]
[1722201946008,0.00828,68096.0,68081.0,2.42433075]
[1722201946604,0.00828,68096.0,68081.0,2.43833075]
[1722201949446,0.00828,68096.0,68088.0,1.675435]
[1722201949734,0.00828,68096.0,68088.0,2.28125264]
[1722201949933,0.00828,68096.0,68088.0,2.33696155]
[1722201950707,0.00828,68096.0,68088.0,2.3778889]
[1722201951040,0.00828,68096.0,68088.0,2.3918889]
[1722201951995,0.00828,68096.0,68088.0,2.4018889]
[1722201952394,0.00828,68096.0,68088.0,2.3918889]
[1722201952583,0.00828,68096.0,68088.0,2.36496155]
[1722201953120,0.00828,68096.0,68088.0,2.35096155]
[1722201953233,0.00828,68096.0,68095.0,1.665107]
[1722201953434,0.00828,68096.0,68095.0,1.788107]
[1722201953792,0.00828,68096.0,68095.0,1.79877278]
[1722201955278,0.00828,68096.0,68095.0,1.71477278]
[1722201955495,0.00828,68096.0,68095.0,1.75570013]